bitfinex/quotes_ETHUSD_20251224
["timestamp","ask_amount","ask_price","bid_price","bid_amount"]
[1766553780935,0.26972396,2934.1,2933.4,3.40898289]
[1766553781137,0.01023663,2933.9,2933.3,2.7887]
[1766553781352,0.01023663,2933.7,2932.9,3.40958086]
[1766553781536,0.01023663,2933.7,2933.0,0.894]
[1766553781863,0.25579366,2933.6,2933.0,0.894]
[1766553782360,0.25579366,2933.6,2933.0,0.893]
[1766553782560,0.01023663,2933.5,2933.0,0.893]
[1766553782864,0.01023663,2933.5,2932.9,2.6758]
[1766553783057,0.01023663,2933.5,2932.9,3.5688]
[1766553783257,0.01023663,2933.3,2932.9,3.5688]
[1766553784264,0.01023663,2933.3,2932.9,2.6758]
[1766553785883,0.01023663,2933.5,2932.9,2.6758]
[1766553786445,0.01023663,2933.5,2932.9,3.5688]
[1766553786982,0.001,2933.3,2932.9,3.5688]
[1766553787554,0.25579366,2933.6,2933.0,2.6758]
[1766553787848,0.01023663,2933.7,2933.0,2.6758]
[1766553789545,0.01023663,2933.7,2933.1,2.6758]
[1766553789862,0.01023663,2933.3,2932.7,3.5688]
[1766553790064,0.01023663,2933.3,2932.7,2.6758]
[1766553790373,0.01023663,2932.9,2932.3,2.6758]
[1766553790574,0.01023663,2932.9,2932.5,0.893]
[1766553790873,0.01023663,2933.1,2932.5,0.893]
[1766553791063,0.01023663,2932.9,2932.4,0.893]
[1766553791575,0.01023663,2932.9,2932.4,3.5688]
[1766553792974,0.01023663,2932.9,2932.5,2.6758]
[1766553793176,0.01023663,2933.1,2932.5,2.6758]
[1766553793564,0.01023663,2933.1,2932.6,2.6758]
[1766553793967,0.01023663,2933.3,2932.6,2.70989943]
[1766553794164,0.01023663,2933.5,2932.6,2.70989943]
[1766553794483,0.01123663,2933.3,2932.6,2.70989943]
[1766553796674,3.42037274,2933.3,2932.7,0.893]
[1766553796882,3.42037274,2933.3,2932.7,3.5688]
[1766553797058,0.01023663,2933.1,2932.6,0.893]
[1766553797259,0.01023663,2933.1,2932.4,2.6778]
[1766553797572,0.01023663,2933.1,2932.5,0.893]
[1766553797778,0.01023663,2933.1,2932.5,3.5688]
[1766553797978,0.01023663,2933.1,2932.6,2.6758]
[1766553798277,0.01023663,2933.1,2932.4,0.002]
[1766553798278,0.01023663,2932.9,2932.4,0.002]
[1766553798459,0.01023663,2932.9,2932.4,0.895]
[1766553798874,0.01023663,2932.9,2932.4,3.5708]
[1766553799069,2.93520393,2933.1,2932.4,3.5708]
[1766553799270,0.01023663,2932.9,2932.5,2.6758]
[1766553800104,0.01023663,2932.9,2932.4,0.895]
[1766553800105,0.2,2934.9,2932.4,0.895]
[1766553800300,0.17790961,2935.8,2934.9,2.6758]
[1766553800451,2.5477,2935.9,2935.0,2.6758]
[1766553800645,0.01023663,2935.6,2935.0,2.6758]
[1766553800878,0.01023663,2935.6,2934.9,0.893]
[1766553800879,2.55793663,2935.6,2934.9,0.893]
[1766553801481,0.01023663,2935.4,2934.9,0.893]
[1766553802475,0.01023663,2935.2,2934.9,0.893]
[1766553802647,0.35295507,2935.2,2934.9,0.893]
[1766553803155,0.35295507,2935.2,2934.1,3.5688]
[1766553803156,0.01023663,2934.8,2934.1,3.5688]
[1766553803464,0.01023663,2934.8,2933.8,3.4085151]
[1766553803465,0.001,2934.5,2933.8,3.4085151]
[1766553803667,0.001,2934.5,2933.8,0.60843151]
[1766553803990,0.001,2934.5,2934.0,3.4083107]
[1766553804196,0.001,2934.5,2934.1,0.034082]
[1766553804567,0.001,2934.5,2933.9,4.30140069]
[1766553805172,0.001,2934.5,2934.0,3.40831022]
[1766553805488,0.01023663,2934.6,2934.1,0.034082]
[1766553805787,0.01023663,2934.6,2934.1,3.5688]
[1766553806282,0.01023663,2934.4,2933.4,5.72664118]
[1766553806484,0.01023663,2934.4,2933.6,6.08448841]
[1766553807269,0.01023663,2934.2,2933.6,2.6758]
[1766553807585,0.01023663,2934.2,2933.7,0.893]
[1766553807890,0.01023663,2934.2,2933.7,0.92708664]
[1766553808094,0.01023663,2934.2,2933.7,4.33574621]
[1766553808383,0.01023663,2934.2,2933.1,2.6758]
[1766553808384,0.01023663,2934.0,2933.1,2.6758]
[1766553808590,0.01023663,2934.2,2933.3,2.6758]
[1766553808755,0.01023663,2934.2,2933.5,6.08465594]
[1766553808958,0.01023663,2934.2,2933.6,0.92708781]
[1766553809196,0.60785191,2934.2,2933.6,0.92708781]
[1766553809393,4.01594122,2934.2,2933.6,0.893]
[1766553809567,4.01594122,2934.2,2933.6,0.92708781]
[1766553809772,4.01594122,2934.2,2933.6,0.893]
[1766553809972,4.01594122,2934.2,2933.5,3.5688]
[1766553810271,0.60785191,2934.2,2933.5,3.5688]
[1766553810484,0.60785191,2934.2,2933.6,0.03408781]
[1766553812571,0.01023663,2934.1,2933.6,0.03408781]
[1766553812883,0.01023663,2934.1,2933.5,2.6758]
[1766553812884,0.01023663,2934.1,2933.5,3.5688]
[1766553813069,0.01023663,2934.1,2933.5,3.60288897]
[1766553814194,0.01023663,2934.1,2933.6,2.7295]
[1766553814994,0.01023663,2934.4,2933.7,2.72758664]
[1766553816667,3.41810789,2934.4,2933.7,2.72758664]
[1766553817103,0.001,2935.7,2933.8,13.63419452]
[1766553817312,0.001,2936.2,2935.2,0.123]
[1766553817605,0.01023663,2935.9,2935.3,0.92706806]
[1766553817771,0.01023663,2935.7,2935.1,0.122]
[1766553817969,0.01023663,2935.7,2934.7,0.122]
[1766553817970,3.17907396,2935.7,2934.7,0.122]
[1766553818301,3.17907396,2935.7,2934.6,0.893]
[1766553818302,2.88913663,2936.1,2935.0,0.1414]
[1766553818498,2.88913663,2936.1,2935.2,3.40692286]
[1766553819978,0.01023663,2935.9,2935.1,0.17547038]
[1766553820482,0.01023663,2935.7,2935.1,0.1414]
[1766553820686,0.01023663,2935.7,2935.1,1.0344]
[1766553820893,0.01023663,2935.7,2935.1,4.44142766]
[1766553820894,0.30017396,2935.7,2935.1,4.44142766]
[1766553821075,0.30017396,2935.7,2935.1,1.0344]
[1766553822023,2.88913663,2935.5,2934.9,0.03407271]
[1766553822515,2.88913663,2935.5,2934.8,3.40735257]
[1766553822694,3.54870204,2935.5,2934.8,3.40735257]
[1766553822900,2.8789,2935.5,2934.9,0.03407271]
[1766553824105,0.30017396,2935.7,2935.0,3.40715502]
[1766553824270,0.28993733,2935.7,2935.0,3.66015502]
[1766553824474,0.28993733,2935.7,2935.1,0.03407038]
[1766553825593,0.28993733,2935.7,2935.0,0.253]
[1766553825913,0.31688373,2935.6,2935.0,1.146]
[1766553826775,0.31688373,2935.6,2935.0,4.55313588]
[1766553827273,0.31688373,2935.6,2935.1,0.03407038]
[1766553827505,0.31688373,2935.6,2935.1,0.34007038]
[1766553827708,2.8789,2935.8,2935.1,0.34007038]
[1766553827885,0.28891366,2935.7,2935.1,0.34007038]
[1766553828911,0.28891366,2935.7,2935.1,0.306]
[1766553829278,0.28891366,2935.7,2935.1,3.71300117]
[1766553829607,0.28891366,2935.7,2935.1,3.74707155]
[1766553830102,0.27869429,2935.7,2935.1,3.74707155]
[1766553831235,0.27869429,2935.7,2935.2,0.0584]
[1766553831416,0.01023663,2936.1,2935.3,0.0584]
[1766553831417,2.88913663,2936.1,2935.3,0.0584]
[1766553831713,2.8789,2936.1,2935.3,0.0584]
[1766553832793,2.8789,2936.1,2935.5,0.0753]
[1766553833821,0.001,2936.2,2935.5,0.0753]
[1766553834026,3.69487218,2936.2,2935.5,0.0753]
[1766553834328,0.28909,2936.2,2935.5,0.10936574]
[1766553834493,3.16799,2936.2,2935.5,0.0753]
[1766553835005,3.16799,2936.2,2935.5,0.10936574]
[1766553835624,3.16799,2936.2,2935.6,0.1407]
[1766553836216,6.58400444,2936.2,2935.6,1.0337]
[1766553836433,0.65840044,2936.1,2935.6,1.0337]
[1766553837118,2.8789,2936.0,2935.1,3.57939312]
[1766553837322,6.29517705,2936.0,2935.2,0.893]
[1766553837537,2.8789,2936.0,2935.3,0.20646806]
[1766553838229,2.8789,2936.0,2935.3,0.1724]
[1766553838430,0.29932663,2936.2,2935.3,0.1724]
[1766553838621,0.001,2936.1,2935.3,0.1724]
[1766553838822,0.65950146,2936.1,2935.3,0.1724]
[1766553839408,0.001,2936.1,2935.5,0.2033]
[1766553840939,0.001,2936.1,2935.6,1.1115]
[1766553841339,0.001,2936.1,2935.0,0.002]
[1766553841340,0.01023663,2935.5,2935.0,0.002]
[1766553841640,3.0048,2935.4,2935.0,0.002]
[1766553841804,0.01023663,2935.3,2935.0,0.002]
[1766553842209,0.001,2937.2,2935.2,5.97660905]
[1766553842404,3.0058,2937.2,2936.4,5.97660905]
[1766553842607,3.0048,2937.0,2935.4,0.2]
[1766553842808,3.0048,2937.0,2935.6,5.97660905]
[1766553843008,3.0048,2937.0,2935.7,0.03406342]
[1766553843234,3.0058,2937.2,2936.1,5.97660905]
[1766553843435,3.0058,2937.2,2936.3,3.40564656]
[1766553843628,3.0058,2937.2,2936.4,0.0340553]
[1766553844728,3.0048,2937.1,2936.4,0.0340553]
[1766553844931,3.0048,2937.1,2936.2,4.29772462]
[1766553844932,3.0048,2937.1,2936.3,0.892]
[1766553845135,3.63562247,2937.0,2936.3,0.892]
[1766553845438,3.63562247,2937.0,2936.3,0.92605646]
[1766553845644,3.63562247,2937.0,2936.3,4.33169386]
[1766553845933,3.0048,2937.0,2936.3,4.33169386]
[1766553846737,3.0048,2937.0,2936.3,4.28169463]
[1766553846942,3.0058,2937.0,2936.3,4.27147665]
[1766553848941,3.0058,2937.0,2936.3,0.86583925]
[1766553849142,3.0058,2937.0,2936.3,0.892]
[1766553849346,0.30058,2936.9,2936.3,0.892]
[1766553849941,3.30538,2936.9,2936.3,0.892]
[1766553850120,3.29516307,2936.9,2936.3,0.892]
[1766553850838,3.29516307,2936.9,2936.3,4.29764525]
[1766553851444,3.69533228,2936.9,2936.3,0.892]
[1766553851637,3.33441631,2936.8,2936.3,0.892]
[1766553853449,3.33441631,2936.8,2936.2,3.40575693]
[1766553854048,3.33441631,2936.8,2935.8,6.5776763]
[1766553854229,3.33441631,2936.8,2936.0,0.892]
[1766553854545,3.0048,2936.6,2936.0,4.29792239]
[1766553855250,3.0048,2936.6,2936.1,3.40586521]
[1766553855550,3.0048,2936.6,2936.1,4.29786521]
[1766553855719,3.0048,2936.6,2936.2,0.03405762]
[1766553856040,3.0048,2936.6,2936.2,3.4397886]
[1766553856217,3.0048,2936.9,2936.2,3.4397886]
[1766553856414,3.34640071,2936.9,2936.2,0.03405762]
[1766553857350,3.34640071,2936.9,2936.2,3.43981128]
[1766553859846,3.0048,2936.9,2936.2,6.84557383]
[1766553860147,3.0048,2936.9,2936.2,6.81151621]
[1766553860346,3.0048,2936.9,2936.3,3.43959662]
[1766553862817,3.0048,2936.9,2936.3,0.03405646]
[1766553863821,3.0048,2936.9,2936.3,3.43968482]
[1766553864150,3.6458603,2936.9,2936.3,3.43968482]
[1766553864354,3.0048,2936.9,2936.3,0.03405646]
[1766553864521,3.0048,2936.9,2936.3,3.4056384]
[1766553864845,0.001,2937.0,2936.4,0.0340553]
[1766553865432,3.0058,2937.0,2936.5,0.892]
[1766553867253,3.0058,2937.0,2936.5,4.29738631]
[1766553867554,0.001,2937.2,2936.6,0.2365]
[1766553868226,0.30168,2937.2,2936.6,0.2365]
[1766553868832,3.30648,2937.2,2936.6,0.2365]
[1766553869457,3.30648,2937.2,2936.6,1.1285]
[1766553870037,3.30648,2937.2,2936.7,0.2677]
[1766553873768,0.001,2937.2,2936.8,0.328]
[1766553874965,3.265,2937.3,2936.8,0.3562]
[1766553875172,0.001,2937.4,2936.8,0.3562]
[1766553875374,0.001,2937.4,2936.8,0.3705]
[1766553875577,3.4534,2938.3,2937.4,5.69994432]
[1766553875910,3.46363663,2938.2,2937.5,0.60403698]
[1766553876189,3.46363663,2937.8,2937.3,0.892]
[1766553877057,0.01023663,2937.6,2937.3,0.892]
[1766553877251,3.4534,2937.8,2937.3,4.1116]
[1766553877964,0.01023663,2937.7,2937.3,4.1116]
[1766553878670,3.4534,2937.8,2937.3,7.51603952]
[1766553878875,3.4534,2937.8,2937.3,4.1116]
[1766553880179,0.01023663,2937.7,2937.3,4.1116]
[1766553880541,0.01023663,2937.7,2936.9,3.40492607]
[1766553880542,0.01023663,2937.5,2936.9,3.40492607]
[1766553880747,3.46363663,2937.3,2936.7,0.892]
[1766553880947,3.4534,2936.9,2936.3,3.2216]
[1766553881278,0.01023663,2937.1,2936.3,3.2216]
[1766553881279,3.4534,2937.1,2936.5,3.40532387]
[1766553881470,3.4534,2937.1,2936.6,3.25365298]
[1766553881675,3.46363663,2937.3,2936.6,3.25365298]
[1766553882581,0.01023663,2937.1,2936.6,3.25365298]
[1766553883687,0.01123663,2937.1,2936.6,3.25365298]
[1766553885186,0.001,2937.1,2936.6,3.43927925]
[1766553885386,0.001,2937.1,2936.7,3.2196]
[1766553885588,0.01023663,2937.5,2936.9,3.2196]
[1766553886486,0.01023663,2937.7,2936.9,3.2196]
[1766553886687,0.01023663,2937.7,2937.1,3.2196]
[1766553887191,0.01023663,2937.7,2937.3,3.2196]
[1766553887488,3.46363663,2937.9,2937.4,3.25364371]
[1766553888498,0.01023663,2938.1,2937.5,3.2196]
[1766553888703,3.4534,2938.1,2937.5,0.892]
[1766553888998,3.4544,2938.3,2937.6,3.2196]
[1766553889288,3.4534,2938.1,2937.5,0.892]
[1766553889658,0.01023663,2938.2,2937.6,3.2196]
[1766553889859,3.4544,2938.3,2937.6,3.2196]
[1766553890058,4.14137533,2938.3,2937.6,3.2196]
[1766553890260,0.01023663,2938.2,2937.6,3.2196]
[1766553890686,0.01023663,2938.2,2937.6,3.25364139]
[1766553890890,0.001,2938.0,2937.6,4.1116]
[1766553891264,3.4544,2938.0,2937.3,3.2196]
[1766553891703,3.46463663,2938.0,2937.4,0.892]
[1766553892005,3.46463663,2938.0,2937.4,5.1535759]
[1766553893002,0.01023663,2938.2,2937.6,7.4811759]
[1766553893201,3.46363663,2938.2,2937.6,7.4811759]
[1766553893488,3.4534,2938.2,2937.8,4.2615759]
[1766553893867,3.4534,2938.2,2937.8,7.4811759]
[1766553895092,3.4534,2938.2,2937.8,3.2196]
[1766553895289,4.14028514,2938.2,2937.8,3.2196]
[1766553895661,3.4534,2937.8,2937.0,3.40476021]
[1766553895866,3.4534,2937.8,2937.0,7.4811759]
[1766553896068,3.46363663,2937.7,2937.0,10.88599949]
[1766553896267,3.46363663,2937.7,2937.1,3.2196]
[1766553896670,3.4534,2937.7,2937.2,4.29562193]
[1766553896865,3.46363663,2937.9,2937.3,3.2196]
[1766553898104,3.46363663,2937.7,2937.0,4.39759995]
[1766553898402,3.46363663,2937.7,2937.1,7.51522308]
[1766553898592,3.46363663,2937.7,2937.1,7.4811759]
[1766553898820,3.4534,2937.7,2937.1,3.2196]
[1766553898985,4.14015009,2937.7,2937.1,4.1116]
[1766553899172,4.14015009,2937.7,2937.1,8.3731759]
[1766553899572,4.14015009,2937.7,2937.3,0.002]
[1766553901069,4.15038672,2937.7,2937.3,0.002]
[1766553902026,0.01023663,2938.1,2937.3,0.002]
[1766553902027,3.3899,2940.2,2937.4,0.1296]
[1766553902186,0.01023663,2940.8,2940.6,3.24577651]
[1766553902386,0.01023663,2940.6,2940.1,3.5413]
[1766553902902,3.35710735,2940.9,2940.1,4.2615759]
[1766553903212,3.3899,2941.5,2940.7,8.5231518]
[1766553903423,0.2147649,2942.2,2941.4,12.1188518]
[1766553903712,0.2147649,2942.2,2941.9,4.2615759]
[1766553903713,0.20452827,2942.2,2941.9,4.2615759]
[1766553903915,3.60336093,2942.2,2941.5,5.18757216]
[1766553904205,3.40013663,2941.6,2941.0,0.892]
[1766553904395,0.0339964,2941.5,2940.6,3.5957]
[1766553904592,0.0339964,2941.5,2940.9,0.892]
[1766553904804,0.0339964,2941.5,2941.0,0.03400204]
[1766553905110,0.02379753,2941.5,2941.0,0.03400204]
[1766553905317,0.68234842,2941.4,2941.0,0.03400204]
[1766553905608,0.68234842,2941.4,2940.6,3.5957]
[1766553905609,0.01023663,2941.0,2940.3,0.892]
[1766553905811,0.04250399,2940.9,2940.4,0.02721795]
[1766553906002,0.01023663,2940.8,2940.4,0.892]
[1766553906186,0.34528773,2940.8,2940.4,0.892]
[1766553906510,0.04250688,2940.7,2940.4,0.892]
[1766553906715,0.34528773,2940.8,2940.4,0.6702162]
[1766553907119,0.34528773,2940.8,2940.2,3.62692079]
[1766553907426,3.44264351,2940.7,2939.9,0.892]
[1766553907578,4.4487808,2940.6,2940.0,0.02723039]
[1766553907783,0.04250977,2940.5,2940.0,0.02723039]
[1766553910212,0.03230708,2940.5,2940.0,0.02723039]
[1766553912017,3.3899,2940.4,2939.9,0.891]
[1766553912310,4.11671537,2940.3,2939.9,0.891]
[1766553912899,0.71563514,2940.3,2939.5,0.03401939]
[1766553913107,0.71563514,2940.3,2939.6,0.891]
[1766553913508,0.71563514,2940.3,2939.6,4.4907]
[1766553914014,7.50660872,2940.3,2939.6,3.5997]
[1766553914315,0.75066087,2940.2,2939.7,0.92501707]
[1766553914697,0.04251556,2940.1,2939.7,0.891]
[1766553915113,0.04251556,2940.1,2939.7,0.92501707]
[1766553915298,0.04251556,2940.1,2939.9,0.002]
[1766553915692,0.75066087,2940.2,2939.9,0.002]
[1766553915912,3.43241266,2940.3,2939.9,0.002]
[1766553917388,3.3899,2940.3,2939.9,0.002]
[1766553917918,3.43241266,2940.3,2939.9,0.002]
[1766553919125,6.800738,2940.7,2939.9,3.63571476]
[1766553919315,0.04250833,2940.6,2939.9,3.63571476]
[1766553921536,3.44320821,2940.6,2939.9,3.63571476]
[1766553921851,0.04250833,2940.6,2939.9,3.63571476]
[1766553923436,3.4000884,2941.1,2940.1,3.5997]
[1766553923737,3.40013663,2940.7,2940.2,0.891]
[1766553924155,3.3899,2940.7,2940.2,0.891]
[1766553925461,6.79021963,2940.9,2940.2,4.4907]
[1766553925636,10.19053926,2940.9,2940.2,4.4907]
[1766553926128,10.19053926,2940.9,2940.2,3.5997]
[1766553926376,1.05315718,2940.8,2940.3,0.92501013]
[1766553926660,1.05315718,2940.8,2940.3,4.52471013]
[1766553927357,4.98238143,2941.4,2940.4,2.948]
[1766553927358,6.78980587,2941.3,2940.4,2.948]
[1766553927564,3.3899,2941.3,2940.6,2.948]
[1766553927764,0.01023663,2941.6,2940.8,2.948]
[1766553927765,3.4006336,2941.5,2940.8,2.948]
[1766553927958,1.02002894,2941.4,2940.9,2.98200319]
[1766553929562,4.41978359,2941.4,2940.9,2.98200319]
[1766553929764,3.3899,2941.0,2940.0,2.9795]
[1766553930081,0.03910006,2940.9,2940.1,3.01351244]
[1766553930248,3.3899,2941.1,2940.1,2.9795]
[1766553930448,0.38200007,2941.0,2940.3,2.9951]
[1766553930653,3.7821367,2941.0,2940.3,2.9951]
[1766553931669,3.8922,2940.9,2940.3,3.8861]
[1766553931874,0.03910006,2940.8,2940.3,3.8861]
[1766553933382,0.03910006,2940.8,2940.4,3.0406]
[1766553933745,3.74321923,2941.0,2940.4,3.0406]
[1766553933961,3.75321923,2941.0,2940.4,3.0406]
[1766553934162,0.37532192,2940.9,2940.4,3.0406]
[1766553936388,3.77564381,2940.9,2940.4,3.0406]
[1766553937381,0.37532192,2940.9,2940.4,3.0406]
[1766553937676,3.77567248,2940.9,2940.4,3.0406]
[1766553938577,3.77667248,2940.9,2940.4,3.0406]
[1766553938744,0.79483725,2940.8,2940.4,3.0406]
[1766553939251,4.61363725,2940.8,2940.1,3.1021]
[1766553939571,4.61363725,2940.8,2940.2,0.891]
[1766553939744,4.61363725,2940.8,2940.1,3.1021]
[1766553939944,4.61363725,2940.8,2940.2,0.891]
[1766553940144,0.80150074,2940.7,2940.2,0.891]
[1766553940541,0.80150074,2940.7,2940.2,4.0069]
[1766553940965,0.80150074,2940.7,2940.2,0.891]
[1766553941164,0.80150074,2940.7,2940.2,4.0069]
[1766553942081,0.80150074,2940.7,2940.2,3.1159]
[1766553942273,0.8020777,2940.6,2940.2,3.1159]
[1766553942474,4.6208777,2940.6,2940.1,0.891]
[1766553943052,4.63111433,2940.6,2940.0,0.891]
[1766553943279,3.82903663,2940.6,2940.0,0.891]
[1766553943484,7.22975333,2940.6,2940.0,0.891]
[1766553943780,7.22975333,2940.6,2940.0,4.0471]
[1766553944080,3.82903663,2940.6,2940.1,0.03401244]
[1766553944375,7.22970961,2940.6,2940.1,0.03401244]
[1766553944570,0.72297096,2940.5,2940.1,0.03401244]
[1766553945151,3.8188,2940.7,2940.0,0.891]
[1766553945385,3.8188,2940.7,2940.1,0.03401244]
[1766553945883,3.82903663,2940.7,2940.0,0.891]
[1766553946063,3.8188,2940.5,2940.0,0.891]
[1766553946575,3.8188,2940.5,2940.1,0.03401244]
[1766553948772,0.72193153,2940.6,2940.1,0.03401244]
[1766553948964,3.8188,2940.8,2940.1,0.03401244]
[1766553950302,7.22949701,2940.8,2940.1,0.03401244]
[1766553950505,7.21926038,2940.8,2940.0,0.9270136]
[1766553950957,7.22949701,2940.8,2940.0,0.9270136]
[1766553951159,3.8188,2940.7,2940.0,0.9270136]
[1766553951402,0.7229497,2940.6,2940.0,0.9270136]
[1766553951775,0.7229497,2940.6,2940.0,4.32833828]
[1766553953005,0.7229497,2940.6,2940.0,0.9270136]
[1766553954285,0.7229497,2940.6,2940.0,4.3283488]
[1766553954484,3.40136997,2940.9,2940.0,0.9270136]
[1766553954880,0.001,2940.9,2940.0,4.32836674]
[1766553955356,3.8198,2940.9,2940.0,0.9270136]
[1766553955557,3.8198,2940.9,2940.0,4.32832426]
[1766553957087,3.8198,2940.9,2940.0,7.7296848]
[1766553957288,3.8198,2940.9,2940.0,8.46883968]
[1766553957585,3.8198,2940.9,2940.0,5.06747914]
[1766553957759,3.8198,2940.9,2940.0,5.10149274]
[1766553958902,3.8188,2940.8,2940.0,5.10149274]
[1766553959984,3.8188,2940.8,2940.1,4.2533963]
[1766553960186,3.8188,2940.8,2940.2,0.03401129]
[1766553960392,4.54180295,2940.8,2940.2,0.03401129]
[1766553961696,7.94224211,2940.8,2940.2,0.03401129]
[1766553961873,4.1084,2940.7,2940.0,5.1463963]
[1766553962495,4.1084,2940.7,2940.0,8.54773784]
[1766553962867,4.1084,2940.6,2940.1,0.891]
[1766553963195,4.60177692,2940.6,2940.0,0.002]
[1766553963765,8.00249634,2940.6,2940.0,0.002]
[1766553963999,4.1084,2940.5,2940.0,0.002]
[1766553965401,4.1084,2940.3,2939.2,4.2533963]
[1766553965568,4.1084,2940.3,2939.4,3.40200702]
[1766553966092,4.1084,2940.3,2939.4,3.40205484]
[1766553966475,4.1084,2940.3,2939.5,4.2533963]
[1766553967397,7.50942755,2940.3,2939.5,4.2533963]
[1766553967696,4.1084,2940.1,2939.5,4.2533963]
[1766553968201,4.1084,2940.1,2939.5,0.891]
[1766553968579,4.1084,2939.5,2938.9,0.002]
[1766553968774,4.1084,2939.5,2938.9,0.03602633]
[1766553969199,4.1084,2939.5,2938.9,0.002]
[1766553971294,4.1084,2939.5,2938.9,0.03602633]
[1766553971691,4.1084,2939.5,2938.9,0.002]
[1766553973910,4.1084,2939.5,2938.9,3.43865996]
[1766553974097,0.90023663,2940.0,2938.9,11.52467225]
[1766553974098,4.1084,2939.9,2938.9,11.52467225]
[1766553974303,4.1084,2939.9,2939.2,4.2533963]
[1766553974597,1.02127833,2939.8,2939.3,0.0340217]
[1766553974907,4.1084,2939.9,2939.3,0.0340217]
[1766553976500,4.86036642,2940.2,2939.3,0.46675698]
[1766553976701,4.86036642,2940.2,2939.3,3.86890751]
[1766553976884,4.1084,2940.2,2939.3,7.27107809]
[1766553977206,4.1084,2940.2,2939.3,3.83488581]
[1766553977408,4.1084,2940.1,2939.3,3.86890751]
[1766553978804,4.1084,2940.1,2939.3,3.83488581]
[1766553979905,4.1084,2940.1,2939.3,3.83688581]
[1766553980084,4.1084,2940.1,2939.4,0.81301699]
[1766553980693,4.1084,2940.1,2939.5,0.03401939]
[1766553981205,4.1084,2940.1,2939.4,0.81301699]
[1766553981509,4.1084,2940.0,2939.5,0.891]
[1766553984213,4.1084,2939.9,2939.5,0.891]
[1766553987087,4.1084,2940.1,2939.3,0.002]
[1766553987410,4.1084,2940.1,2939.3,0.893]
[1766553987411,0.01023663,2940.0,2939.3,0.893]
[1766553987618,4.52026366,2939.9,2939.3,0.002]
[1766553988815,4.52026366,2939.9,2939.3,0.0360217]
[1766553990921,4.1084,2939.8,2939.3,0.002]
[1766553991599,4.1084,2939.8,2939.3,0.893]
[1766553993008,7.50999709,2939.8,2939.3,0.002]
[1766553993192,4.88028607,2939.7,2939.3,0.002]
[1766553993388,4.88028607,2939.7,2939.1,0.03402402]
[1766553993695,4.88028607,2939.7,2939.0,0.891]
[1766553995703,4.88028607,2939.7,2939.0,4.29347642]
[1766553995905,4.88028607,2939.7,2939.1,0.03402402]
[1766553997029,4.88028607,2939.7,2938.9,0.893]
[1766553997241,4.1774,2939.6,2938.9,5.14991151]
[1766553997602,4.1774,2939.6,2939.0,0.002]
[1766553997801,5.01453606,2939.6,2939.0,0.002]
[1766553999904,4.1774,2939.6,2939.0,0.03602517]
[1766554000105,4.1774,2939.6,2939.1,4.25691151]
[1766554000413,4.1774,2939.6,2939.2,0.03402286]
[1766554002759,4.1774,2939.6,2939.2,4.29093437]
[1766554003041,4.58926366,2939.9,2939.2,7.69319602]
[1766554003238,4.58926366,2939.9,2939.2,7.65917316]
[1766554004236,0.01,2939.8,2939.2,7.65917316]
[1766554004544,4.1874,2939.8,2939.3,0.0340217]
[1766554005239,4.98746299,2939.8,2939.3,0.0340217]
[1766554006132,0.001,2939.7,2939.3,0.0340217]
[1766554009143,0.001,2939.7,2939.4,4.25691151]
[1766554012053,0.011,2939.7,2939.4,4.25691151]
[1766554013854,0.011,2939.7,2939.3,3.43611576]
[1766554014756,0.011,2939.7,2939.3,3.43811576]
[1766554014945,0.011,2939.7,2939.3,0.0360217]
[1766554016654,0.011,2939.7,2939.3,3.43813102]
[1766554017154,0.011,2939.7,2939.3,0.0360217]
[1766554021678,4.5006,2939.7,2939.3,0.0360217]
[1766554021871,4.95066,2939.7,2939.3,0.002]
[1766554022552,4.95066,2939.7,2939.3,0.0360217]
[1766554024669,4.4896,2939.5,2939.3,2.17e-05]
[1766554024880,4.4896,2939.5,2938.8,0.002]
[1766554024881,4.4896,2939.3,2938.8,0.002]
[1766554025063,4.4896,2939.1,2938.1,0.0360356]
[1766554025267,4.4896,2938.9,2938.3,5.14791151]
[1766554025490,4.4996,2938.8,2938.4,0.03403212]
[1766554027309,4.4996,2938.8,2938.3,0.891]
[1766554030090,4.4996,2938.8,2938.4,0.03403212]
[1766554033885,4.4996,2938.8,2938.3,0.92703328]
[1766554035091,4.4996,2938.8,2938.3,4.33035554]
[1766554038898,0.001,2938.9,2938.3,4.71905035]
[1766554039103,4.4906,2938.9,2938.4,4.25691151]
[1766554039401,4.4906,2938.9,2938.4,5.14791151]
[1766554042196,4.4906,2938.9,2938.4,8.55108127]
[1766554043204,0.001,2938.9,2938.4,8.55108127]
[1766554043401,4.52360006,2939.2,2938.4,8.89460188]
[1766554043570,4.52360006,2939.2,2938.4,9.78560188]
[1766554044203,0.001,2938.9,2938.4,9.78560188]
[1766554044609,4.52360006,2939.2,2938.4,9.78560188]
[1766554045997,4.52360006,2939.2,2938.5,0.03403096]
[1766554046197,4.52360006,2939.2,2938.5,0.83139278]
[1766554046572,4.52360006,2939.2,2938.6,4.25691151]
[1766554046867,4.52360006,2939.2,2938.7,0.03402865]
[1766554050505,4.52460006,2939.2,2938.7,0.03402865]
[1766554054501,3.43732853,2939.2,2938.5,1.68836182]
[1766554054819,4.3931,2939.1,2938.5,1.68836182]
[1766554055017,3.43732853,2939.2,2938.5,1.68836182]
[1766554055018,4.24110006,2939.0,2938.5,0.79736182]
[1766554055317,4.24110006,2939.0,2938.5,0.891]
[1766554055719,4.24110006,2939.0,2938.4,4.25691151]
[1766554055924,4.24110006,2939.0,2938.3,3.40526072]
[1766554056224,4.24110006,2939.0,2938.5,0.892]
[1766554058989,4.24210006,2939.0,2938.5,0.892]
[1766554059632,4.2071,2938.9,2938.4,0.894]
[1766554059936,4.2071,2938.7,2938.4,0.894]
[1766554061316,4.2071,2938.9,2938.5,0.03403096]
[1766554062128,4.24210006,2939.0,2938.5,0.03403096]
[1766554071476,0.111,3332.9,2938.9,4.25899454]
[1766554071477,0.001,2940.2,2938.9,4.25899454]
[1766554071695,4.2081,2940.2,2939.0,5.15099454]
[1766554071981,4.2081,2940.2,2939.3,4.25899454]